[Event "Azerbaijan-ch-Women-2025"]
[Site "Baku"]
[Date "2025.02.04"]
[Round "1.1"]
[White "Beydullayeva, Govhar"]
[Black "Rzali, Sabina"]
[Result "1-0"]
[Annotator "TA"]
[ECO "D35"]
[WhiteElo "2404"]
[BlackElo "2027"]
[PlyCount "119"]
[EventDate "2025.01.08"]
[EventType "k.o."]
[EventCountry "AZE"]
[SourceTitle "playchess.com"]
[Source "ChessBase"]
[SourceQuality "1"]
[TimeControl "40/5400+30:1800+30"]

{[%evp 16,119,25,19,20,16,32,20,36,36,60,29,30,17,33,21,18,12,12,15,14,0,25,19,35,11,26,13,8,0,21,0,6,-4,0,0,0,0,0,-25,23,24,30,25,33,0,79,78,93,89,122,102,139,58,193,92,405,181,243,219,221,242,393,423,499,191,171,185,183,179,258,262,301,190,435,421,391,358,355,337,329,326,505,475,494,473,500,481,568,560,747,703,765,643,733,641,654,625,1046,936,1510,758,1063,764,1163,1144]} 1. d4 {[%emt 0:00:01]} d5 {[%emt 0:00:06]} 2. c4 {[%emt 0:01:33]} e6 {[%emt 0:00:10]} 3. Nc3 {[%emt 0:00:11]} Nf6 {[%emt 0:00:31]} 4. cxd5 {[%emt 0:00:16]} exd5 {[%emt 0:00:06]} 5. Bg5 {[%emt 0:00:06]} Be7 {[%emt 0:00:59]} 6. e3 {[%emt 0:00:16]} c6 {[%emt 1:31:38]} 7. Bd3 {[%emt 0:01:25]} Nbd7 {[%emt 0:00:00]} 8. Nf3 {[%emt 0:05:40]} Ne4 {[%emt 0:00:00]} 9. Bf4 {[%emt 0:01:38]} Ndf6 {[%emt 0:00:00] D35: Queen's Gambit Declined: Exchange Variation.} 10. Qc2 {[%emt 0:12:50]} Nd6 {[%emt 0:00:00]} 11. h3 {[%emt 0:08:02]} Be6 $146 {[%emt 0:00:00] The position is equal.} (11... O-O 12. g4 g6 13. O-O-O Re8 14. Ne5 Nfe4 15. f3 Nxc3 16. bxc3 Be6 17. h4 Nc4 18. Bxc4 dxc4 {1-0 Percivaldi,M (2391)-Neelash,S (2334) Wch U20 58th 2019 (8)}) 12. O-O {[%emt 0:05:57]} Qc8 {[%emt 0:00:00]} 13. Rfe1 {[%emt 0:14:47]} O-O {[%emt 0:00:00]} 14. Rac1 {[%emt 0:08:28]} h6 {[%emt 0:00:00] Prevents Ng5.} 15. Ne5 {[%emt 0:02:53]} Bf5 {[%emt 0:00:00]} 16. Na4 {[%emt 0:00:19]} Bxd3 {[%emt 0:00:00]} 17. Nxd3 {[%emt 0:00:22]} Re8 {[%emt 0:00:00]} 18. f3 {[%emt 0:04:53]} Bf8 {[%emt 0:00:00]} (18... Nh5 $5) 19. Nac5 {[%emt 0:01:42]} Nf5 {[%emt 0:00:00]} 20. Qc3 {[%emt 0:15:12]} Rd8 {[%emt 0:02:29]} 21. Nb3 {[%emt 0:02:15]} Re8 {[%emt 0:01:45]} 22. Nbc5 {[%emt 0:01:18]} Rd8 {[%emt 0:00:27]} 23. Nb3 {[%emt 0:00:42]} Re8 {[%emt 0:00:04]} 24. Ndc5 {[%emt 0:02:20]} b6 {[%emt 0:01:59]} 25. Nd3 {[%emt 0:00:04]} Qa6 $1 {[%emt 0:00:45]} 26. Be5 {[%emt 0:01:22]} Nd7 {[%emt 0:01:57]} (26... Qxa2 $2 27. Ra1 $18) 27. e4 {[%emt 0:03:54]} dxe4 {[%emt 0:00:29]} (27... Nxe5 {is more appropriate.} 28. Nxe5 Ne7) 28. fxe4 $11 {[%emt 0:01:07]} Ne7 {[%emt 0:00:10][%cal Oe7g6]} 29. Bg3 {[%emt 0:00:58]} Rac8 {[%emt 0:00:40][%cal Oe7g6]} 30. a3 {[%emt 0:00:22]} Nf6 {[%emt 0:00:41] [#]} (30... Ng6 $11) 31. Ne5 $1 $16 {[%emt 0:01:43]} Qb5 {[%emt 0:00:29]} 32. Nd2 {[%emt 0:00:41]} Red8 {[%emt 0:00:31]} 33. Ndf3 {[%emt 0:00:44]} Ne8 {[%emt 0:00:27]} 34. b4 {[%emt 0:01:02] White is more active.} ({White should play} 34. Qc2 $16) 34... Qa4 {[%emt 0:00:29]} (34... c5 $1 $14) 35. Bh4 {[%emt 0:01:56]} (35. Qc4 $18 Nd6 36. Qa2) 35... g5 $2 {[%emt 0:00:30][%mdl 8192]} (35... c5 $16 {is more resistant.}) 36. Bf2 {[%emt 0:00:08]} (36. Bxg5 $142 hxg5 37. Nxg5) 36... Nd6 {[%emt 0:00:28]} (36... Bg7 $142 37. Qd3 Nf6) 37. Qb2 {[%emt 0:00:14]} Bg7 {[%emt 0:00:36] [#]} 38. h4 $1 {[%emt 0:01:05]} f6 $2 {[%emt 0:00:29]} (38... gxh4 39. Bxh4 Re8) 39. Qa2+ $18 {[%emt 0:00:33]} Kh7 {[%emt 0:00:29]} 40. Nf7 {[%emt 0:00:00]} (40. hxg5 fxe5 41. dxe5) 40... Nxf7 {[%emt 0:00:00]} 41. Qxf7 {[%emt 0:00:53] White attacks} Ng6 {[%emt 0:06:09]} 42. Rc3 {[%emt 0:06:03]} g4 {[%emt 0:07:22]} (42... Nf4 43. Bg3 c5) 43. Nh2 {[%emt 0:01:38][%cal Oc3g3]} (43. h5 Nh8 44. Qe6 gxf3 $17) 43... h5 {[%emt 0:00:57]} 44. Nf1 {[%emt 0:03:52]} Rf8 $2 {[%emt 0:05:09]} (44... c5 45. Ng3 (45. bxc5 Rxd4 46. c6 Rxe4 $14) (45. dxc5 Qd7 $16) 45... Qe8 46. Qxa7 Nxh4 47. Qxb6 (47. bxc5 Rc6 $18) 47... cxd4 48. Rxc8 (48. Bxd4 Rxc3 49. Bxc3 Rc8 $16) 48... Rxc8 49. Qxd4 Ra8) 45. Qd7 {[%emt 0:01:46]} Qb5 {[%emt 0:05:10] Prevents Qf5.} 46. d5 {[%emt 0:00:52]} (46. Qxa7 f5 $16) 46... Ne5 {[%emt 0:00:53]} 47. Qf5+ {[%emt 0:00:13]} (47. Qxa7 f5 $14) 47... Kg8 {[%emt 0:00:30]} 48. Bd4 {[%emt 0:05:45]} (48. Qxh5 cxd5 49. Rxc8 Rxc8 $14) 48... Nd3 {[%emt 0:07:52]} (48... a5 {was necessary.} 49. bxa5 (49. Qxh5 axb4 50. axb4 Qxb4 $16) (49. Bxe5 fxe5 50. Qe6+ Kh7 $18) 49... Qxa5) 49. Rd1 {[%emt 0:04:14] White is clearly winning.} Nb2 {[%emt 0:00:36]} 50. Rb1 {[%emt 0:00:05]} ({Much less strong is} 50. Rdc1 Nd3 51. R1c2 (51. dxc6 Qxf5 52. exf5 Nxc1 $17) (51. Rxc6 Nxc1 52. Qe6+ Kh7 $11) (51. Qe6+ Kh8 $18) 51... a5 52. bxa5 (52. Rxc6 Rxc6 53. Rxc6 axb4 $18) (52. dxc6 Qxf5 53. exf5 Nf4 $18) (52. Qxh5 axb4 53. axb4 Nxb4 $16) 52... bxa5) 50... Na4 {[%emt 0:00:38]} 51. Rcc1 {[%emt 0:02:33]} Qd3 {[%emt 0:00:45]} 52. Rd1 {[%emt 0:00:05]} Qc4 {[%emt 0:00:32]} 53. Qxh5 {[%emt 0:01:13]} c5 {[%emt 0:00:26]} 54. Rbc1 {[%emt 0:01:53]} Qb3 {[%emt 0:00:33]} 55. bxc5 {[%emt 0:02:06]} bxc5 {[%emt 0:00:21]} 56. Qxg4 {[%emt 0:00:22]} Qxa3 {[%emt 0:00:37]} 57. h5 {[%emt 0:00:40] Hoping for h6.} Kh8 {[%emt 0:00:20]} 58. Ba1 {[%emt 0:03:29]} Rc7 {[%emt 0:00:32]} 59. Qg6 {[%emt 0:00:28]} f5 {[%emt 0:00:28]} 60. d6 {[%emt 0:01:00] Weighted Error Value: White=0.58/Black=0.92  Loses game:     	---       	Black=1      Mistake:       	White=4     	Black=8      Inaccurate:     	White=3     	Black=3      OK:         	White=17    	Black=12     Best:        	---       	Black=1      Strong:       	White=2     	Black=1} 1-0

[Event "Azerbaijan-ch-Women-2025"]
[Site "Baku"]
[Date "2025.02.04"]
[Round "1.1"]
[White "Balajayeva, Khanim"]
[Black "Hajiyeva, Laman"]
[Result "1-0"]
[Annotator "TA"]
[ECO "D45"]
[WhiteElo "2355"]
[BlackElo "2079"]
[PlyCount "61"]
[EventDate "2025.01.08"]
[EventType "k.o."]
[EventCountry "AZE"]
[SourceTitle "playchess.com"]
[Source "ChessBase"]
[SourceQuality "1"]
[TimeControl "40/5400+30:1800+30"]

{[%evp 19,61,0,1,0,16,14,7,19,16,22,24,13,25,15,31,27,27,9,46,10,67,52,94,90,121,114,121,106,341,350,348,336,414,384,370,385,878,782,963,935,2455,1386,29982,2238]} 1. c4 {[%emt 0:00:12]} c6 {[%emt 0:01:47]} 2. Nf3 {[%emt 0:00:44]} d5 {[%emt 0:00:47]} 3. e3 {[%emt 0:00:41]} Nf6 {[%emt 0:01:04]} 4. Nc3 {[%emt 0:00:49]} e6 {[%emt 0:03:02]} 5. b3 {[%emt 0:01:02]} Bd6 {[%emt 0:02:15]} 6. Bb2 {[%emt 0:00:45]} O-O {[%emt 0:02:01]} 7. d4 {[%emt 0:00:56]} Nbd7 {[%emt 0:04:25]} 8. Be2 {[%emt 0:01:06]} b6 {[%emt 0:08:06]} 9. O-O {[%emt 0:01:27]} Bb7 {[%emt 0:02:39]} 10. Qc2 {[%emt 0:01:47]} Rc8 {[%emt 0:09:31]} 11. Rad1 {[%emt 0:04:29] D45: Semi-Slav: 5 e3.} Qe7 {[%emt 0:04:39]} 12. e4 {[%emt 0:09:21]} dxe4 {[%emt 0:06:14]} 13. Nxe4 {[%emt 0:00:55] The position is equal.} Nxe4 {[%emt 0:02:12]} 14. Qxe4 {[%emt 0:02:50]} Nf6 {[%emt 0:02:43]} 15. Qc2 {[%emt 0:04:40]} Rfd8 {[%emt 0:05:59]} 16. Rfe1 {[%emt 0:04:02]} h6 {[%emt 0:04:17]} 17. Bd3 {[%emt 0:03:43]} Qf8 {[%emt 0:06:41]} 18. h3 {[%emt 0:07:55]} a5 $146 {[%emt 0:06:37]} (18... Bb4 19. Re2 Ba3 20. Bxa3 Qxa3 21. Ne5 Qb4 22. Red2 Qe7 23. Qc3 Qc7 24. Bc2 c5 25. dxc5 Rxd2 26. Rxd2 Qxc5 {½-½ Billio,M (1967)-Mostowik,D (2103) ZI-2015-0-02100}) 19. Nh4 {[%emt 0:09:35]} Rd7 {[%emt 0:08:57]} (19... Ra8 $11) 20. Qc1 $14 {[%emt 0:05:48]} Rcd8 {[%emt 0:02:02]} 21. Bb1 {[%emt 0:03:01]} Be7 {[%emt 0:03:37] [#]} 22. Qc2 $1 {[%emt 0:03:33][%cal Od4d5] White is more active.} g6 {[%emt 0:02:52]} 23. Rd3 {[%emt 0:07:22]} Ne8 $2 {[%emt 0:01:52] [#] Black cannot hold the game after this.} (23... Qg7 $16) 24. Nxg6 $1 $18 {[%emt 0:07:26][%mdl 512]} fxg6 {[%emt 0:01:44]} 25. Rg3 {[%emt 0:00:34]} (25. Rxe6 Rd6 26. Rde3 Rxe6 27. Rxe6 Qf7 28. Rxg6+ Kf8 29. Rxh6 Bf6) 25... Bf6 {[%emt 0:01:24]} 26. Qxg6+ {[%emt 0:01:44]} ({Less strong is} 26. Rxe6 Rg7 27. Rxg6 b5 $18) 26... Rg7 {[%emt 0:02:22]} 27. Qxh6 {[%emt 0:00:34]} Rdd7 $2 {[%emt 0:01:08]} (27... Bc8 28. Ree3 Kf7 29. Bg6+ Ke7) 28. Bg6 {[%emt 0:02:26]} ({And not} 28. Rxe6 Rxg3 29. Qxf8+ Kxf8 $15) 28... Nc7 {[%emt 0:00:25]} 29. Ree3 {[%emt 0:04:52]} Qd8 {[%emt 0:01:31]} 30. Ref3 {[%emt 0:01:53][%cal Od4d5] Threatens to win with d5!.} c5 {[%emt 0:00:47]} 31. Bh7+ {[%emt 0:00:39] Weighted Error Value: White=0.08 (flawless) /Black=1.37  Loses game:     	---       	Black=1      Mistake:       	---       	Black=2      Inaccurate:     	White=1     	Black=3      OK:         	White=5     	Black=2      Best:        	White=2     	Black=1      Strong:       	White=1     	---        Brilliant:      	White=1     	---} (31. d5 $142 e5 32. Bh7+ Kf8 33. Rxf6+ (33. Qxf6+ Qxf6 34. Rxf6+ Rdf7 $18) 33... Qxf6 34. Qxf6+ Rdf7 35. Qd6+ (35. Rxg7 Rxf6 36. Rxc7 Rf7 $18) (35. Qxb6 Rxg3 36. fxg3 Bc6 $18) 35... Ke8 36. Bg6 (36. Bxe5 Rxg3 37. Bxg3 Rxh7 $18) (36. Qxe5+ Re7 $18) 36... Bxd5 37. cxd5 (37. Qxc7 Bc6 38. Rd3 Kf8 39. Rd8+ Be8 40. Qd6+ Kg8 41. Rxe8+ Rf8 42. Rxf8#)) 1-0

[Event "Azerbaijan-ch-Women-2025"]
[Site "Baku"]
[Date "2025.02.04"]
[Round "1.1"]
[White "Allahverdiyeva, Ayan"]
[Black "Mamedjarova, Zeinab"]
[Result "0-1"]
[Annotator "NA RC"]
[ECO "C79"]
[WhiteElo "2284"]
[BlackElo "2145"]
[PlyCount "80"]
[EventDate "2025.01.08"]
[EventType "k.o."]
[EventCountry "AZE"]
[SourceTitle "playchess.com"]
[Source "ChessBase"]
[SourceQuality "1"]
[TimeControl "40/5400+30:1800+30"]

1. e4 {[%emt 0:00:34]} e5 {[%emt 0:00:27]} 2. Nf3 {[%emt 0:00:05]} Nc6 {[%emt 0:00:29]} 3. Bb5 {[%emt 0:00:22]} a6 {[%emt 0:00:17]} 4. Ba4 {[%emt 0:00:04]} b5 {[%emt 0:00:35]} 5. Bb3 {[%emt 0:00:20]} Na5 {[%emt 0:00:29]} 6. O-O {[%emt 0:02:00]} d6 {[%emt 0:00:30]} 7. c3 {[%emt 0:02:48]} Nxb3 {[%emt 0:00:12]} 8. axb3 {[%emt 0:00:03]} Nf6 {[%emt 0:01:24]} 9. Re1 {[%emt 0:00:43]} Bb7 {[%emt 0:05:18]} 10. d4 {[%emt 0:03:46]} exd4 {[%emt 0:05:59]} 11. cxd4 {[%emt 0:03:22]} Be7 {[%emt 0:01:01]} 12. d5 {[%emt 0:04:08]} O-O {[%emt 0:02:56]} 13. Nd4 {[%emt 0:09:36]} Re8 {[%emt 0:09:40]} 14. b4 {[%emt 0:05:36]} Nd7 {[%emt 0:09:14]} 15. Nd2 {[%emt 0:05:37]} Ne5 {[%emt 0:59:29]} 16. Ra3 {[%emt 0:06:58]} c6 {[%emt 0:00:00]} 17. Rh3 {[%emt 0:24:07]} g6 {[%emt 0:00:00]} 18. Qb3 {[%emt 0:10:15]} cxd5 {[%emt 0:00:00]} 19. exd5 {[%emt 0:00:06]} Rc8 {[%emt 0:00:00]} 20. N4f3 {[%emt 0:06:45]} Nxf3+ {[%emt 0:00:00]} 21. Qxf3 {[%emt 0:01:49]} Bg5 {[%emt 0:00:00]} 22. Qd1 {[%emt 0:04:28]} Rxe1+ {[%emt 0:00:00]} 23. Qxe1 {[%emt 0:00:21]} Qe7 {[%emt 0:00:00]} 24. Qd1 {[%emt 0:03:53]} Rxc1 {[%emt 0:00:00]} 25. Qxc1 {[%emt 0:00:07]} Qe2 {[%emt 0:00:00]} 26. Re3 {[%emt 0:00:54]} Bxe3 {[%emt 0:00:00]} 27. fxe3 {[%emt 0:00:03]} Qxe3+ {[%emt 0:00:00]} 28. Kf1 {[%emt 0:02:02]} Qd3+ {[%emt 0:00:53]} 29. Kg1 {[%emt 0:01:09]} Qd4+ {[%emt 0:00:48]} 30. Kh1 {[%emt 0:00:53]} Qxb4 {[%emt 0:00:43]} 31. Nf1 {[%emt 0:00:20]} Bxd5 {[%emt 0:00:11]} 32. Ne3 {[%emt 0:00:04]} Be6 {[%emt 0:00:38]} 33. h3 {[%emt 0:00:33]} Qf4 {[%emt 0:02:02]} 34. Qc3 {[%emt 0:00:35]} b4 {[%emt 0:01:28]} 35. Qd3 {[%emt 0:00:12]} a5 {[%emt 0:00:14]} 36. b3 {[%emt 0:01:20]} h5 {[%emt 0:00:34]} 37. Nf1 {[%emt 0:00:34]} Bxb3 {[%emt 0:00:20]} 38. Nd2 {[%emt 0:01:13]} Be6 {[%emt 0:00:40]} 39. Ne4 {[%emt 0:00:05]} d5 {[%emt 0:01:13]} 40. Nc5 {[%emt 0:00:00]} Qc1+ {[%emt 0:00:00]} 0-1

[Event "Azerbaijan-ch-Women-2025"]
[Site "Baku"]
[Date "2025.02.04"]
[Round "1.1"]
[White "Abdinova, Narmin"]
[Black "Ibrahimova, Sabina"]
[Result "1/2-1/2"]
[Annotator "TA"]
[ECO "E05"]
[WhiteElo "2186"]
[BlackElo "2177"]
[PlyCount "136"]
[EventDate "2025.01.08"]
[EventType "k.o."]
[EventCountry "AZE"]
[SourceTitle "playchess.com"]
[Source "ChessBase"]
[SourceQuality "1"]
[TimeControl "40/5400+30:1800+30"]

{[%evp 21,136,8,21,4,11,5,37,27,37,35,96,101,102,101,102,94,89,94,96,86,97,77,80,75,83,76,83,90,83,82,77,66,70,64,61,54,69,64,70,66,59,61,71,54,76,71,71,60,71,33,31,22,26,12,12,15,7,1,46,41,41,42,50,24,28,25,29,13,68,49,67,69,81,50,50,22,66,21,21,24,26,28,82,82,82,82,89,59,82,82,82,82,82,82,82,82,82,82,82,82,82,82,83,59,59,0,84,89,83,76,89,76,76,83,76,8,9]} 1. d4 {[%emt 0:00:14]} Nf6 {[%emt 0:00:47]} 2. c4 {[%emt 0:00:21]} e6 {[%emt 0:00:32]} 3. g3 {[%emt 0:00:16]} Be7 {[%emt 0:00:13]} 4. Bg2 {[%emt 0:00:11]} d5 {[%emt 0:00:10]} 5. Nf3 {[%emt 0:00:19]} O-O {[%emt 0:00:10]} 6. O-O {[%emt 0:00:09]} dxc4 {[%emt 0:00:21]} 7. Qc2 {[%emt 0:00:34]} a6 {[%emt 0:00:57]} 8. a4 {[%emt 0:00:05]} Bd7 {[%emt 0:00:47]} 9. Qxc4 {[%emt 0:00:33]} Bc6 {[%emt 0:00:33]} 10. Bg5 {[%emt 0:03:34]} Nbd7 {[%emt 0:04:49][%cal Bb8d7,Bd7f6,Bf6e4][%mdl 32]} 11. Nc3 {[%emt 0:05:01]} h6 {[%emt 0:12:12]} 12. Bxf6 {[%emt 0:01:40] E05: Open Catalan: 5 Nf3 Be7.} Nxf6 {[%emt 0:00:54]} 13. Rfe1 {[%emt 0:03:22]} Ne4 {[%emt 0:13:23]} 14. Qd3 {[%emt 0:08:11] White is slightly better.} Nxc3 {[%emt 0:06:15]} 15. bxc3 {[%emt 0:00:13]} b5 $146 {[%emt 0:02:48] [#]} (15... Rb8 $14) (15... Bf6 16. a5 Qd7 17. e4 b5 18. axb6 cxb6 19. Bh3 Qb7 20. d5 Bb5 21. Qc2 exd5 {½-½ Leite,D (2412)-De Oliveira,M (2543) CADAP-ch20 zt final email 2008}) 16. Ng5 $1 $16 {[%emt 0:04:48]} hxg5 {[%emt 0:05:12]} 17. Bxc6 {[%emt 0:01:33][%cal Bg2c6,Bc6b5,Bb5c4,Bc4d3,Bd3e4][%mdl 32]} Rb8 {[%emt 0:00:01] Black is weak on the light squares} 18. axb5 {[%emt 0:00:32] White is more active.} axb5 {[%emt 0:00:03]} 19. Bxb5 {[%emt 0:01:51][%csl Oc7] Black has weak pawns} g6 {[%emt 0:01:13]} 20. Reb1 {[%emt 0:08:59]} Kg7 {[%emt 0:01:38]} 21. Bc4 {[%emt 0:02:13]} Rxb1+ {[%emt 0:08:21]} 22. Rxb1 {[%emt 0:00:35]} Rh8 {[%emt 0:00:15]} 23. Rb7 {[%emt 0:02:16]} (23. Qe4 Qa8 24. Qe5+ Bf6 25. Qc5) 23... Qc8 {[%emt 0:05:09]} 24. Qe4 {[%emt 0:01:31]} Bd6 {[%emt 0:03:17] Prevents Qe5+} 25. Bd3 {[%emt 0:05:54]} Qa8 {[%emt 0:06:31]} 26. Rb1 {[%emt 0:24:14] Prevents Qa1} e5 {[%emt 0:11:37]} 27. Qe3 {[%emt 0:02:58]} (27. Rb5 Qxe4 28. Bxe4 g4 29. Bd5) 27... Qc8 {[%emt 0:02:40]} 28. Qxg5 {[%emt 0:05:08]} Qh3 {[%emt 0:00:56]} 29. Be4 {[%emt 0:02:44]} (29. dxe5 $2 Qxh2+ 30. Kf1 Qh1#) 29... Qxh2+ {[%emt 0:00:33]} 30. Kf1 {[%emt 0:00:01] Really sharp!} Qh3+ {[%emt 0:01:57]} 31. Bg2 {[%emt 0:01:06]} Qe6 {[%emt 0:01:11]} 32. Qe3 {[%emt 0:06:58]} Qa2 {[%emt 0:06:43]} 33. Rc1 {[%emt 0:01:37]} Qe6 {[%emt 0:00:41]} 34. dxe5 {[%emt 0:04:45]} Bxe5 {[%emt 0:01:55]} 35. f4 {[%emt 0:00:18]} Bd6 {[%emt 0:00:22]} 36. Qd4+ {[%emt 0:02:38]} (36. Qxe6 {simplifies} fxe6 37. e3 Kf6 38. Kf2) 36... f6 {[%emt 0:00:09]} 37. c4 {[%emt 0:00:16]} Re8 {[%emt 0:02:28]} 38. Rc2 {[%emt 0:00:25]} Qf5 {[%emt 0:00:44]} 39. e4 {[%emt 0:00:56]} (39. Rd2 {is more complex.} g5 40. e4 Qa5 41. Bf3) 39... Qc5 {[%emt 0:00:34]} 40. Qxc5 {[%emt 0:00:00]} Bxc5 $14 {[%emt 0:00:00][%mdl 4096] Endgame KRB-KRB. White is a pawn up.} 41. Rd2 {[%emt 0:01:15]} c6 {[%emt 0:06:36]} 42. Ke2 {[%emt 0:02:57]} Re7 {[%emt 0:03:29]} 43. Kf3 {[%emt 0:03:19]} Ra7 {[%emt 0:03:51]} 44. Kg4 {[%emt 0:05:39]} Be3 {[%emt 0:05:54]} (44... Ra3 $11) 45. Rd3 {[%emt 0:00:59]} (45. Rd6 $5) 45... Bf2 {[%emt 0:02:18]} 46. e5 {[%emt 0:02:12]} fxe5 {[%emt 0:01:37]} 47. Bxc6 {[%emt 0:02:43]} exf4 {[%emt 0:00:10]} 48. gxf4 {[%emt 0:00:11]} Rc7 {[%emt 0:01:58]} 49. Rd6 {[%emt 0:01:06]} Bc5 {[%emt 0:02:22]} 50. Re6 {[%emt 0:00:25]} Re7 {[%emt 0:02:15]} 51. Re5 {[%emt 0:01:21]} Rxe5 {[%emt 0:05:19]} (51... Bd6 $11) 52. fxe5 $11 {[%emt 0:00:07] KB-KB. White is a pawn up.} Kf7 {[%emt 0:00:50]} 53. Kf4 {[%emt 0:02:01]} Ke6 {[%emt 0:00:22][%cal Og6g5]} 54. Ke4 {[%emt 0:01:46]} g5 {[%emt 0:00:24]} 55. Bd5+ {[%emt 0:01:14]} Ke7 {[%emt 0:00:04]} 56. Kf5 {[%emt 0:00:19]} Bd4 {[%emt 0:01:00]} 57. Bf3 {[%emt 0:00:14]} Be3 {[%emt 0:00:50]} 58. Bg4 {[%emt 0:00:59]} Bd4 {[%emt 0:00:17]} 59. Ke4 {[%emt 0:00:16]} Bf2 {[%emt 0:00:38]} 60. Kd5 {[%emt 0:00:50]} Be3 {[%emt 0:00:23]} 61. c5 {[%emt 0:00:25][%cal Bc4c5,Bc5c6][%mdl 32]} Bf2 {[%emt 0:00:10]} 62. Kc6 {[%emt 0:00:26]} Bg3 {[%emt 0:00:06]} 63. Kd5 {[%emt 0:00:12] [#]} Bf2 {[%emt 0:00:06]} 64. c6 {[%emt 0:06:35] White wants to mate with c7.} Bb6 {[%emt 0:00:09]} 65. Ke4 {[%emt 0:00:40]} Bc7 {[%emt 0:00:14]} 66. Kd4 {[%emt 0:00:55]} Bb6+ {[%emt 0:00:29]} 67. Kd5 {[%emt 0:00:02]} Bc7 {[%emt 0:00:05]} 68. e6 {[%emt 0:00:10]} ({White should try} 68. Bh3 $16) 68... Bf4 {[%emt 0:00:31] Weighted Error Value: White=0.09 (flawless) /Black=0.10 (very precise)   Mistake:       	White=1     	Black=3      Inaccurate:     	White=6     	Black=3      OK:         	White=14    	Black=18     Best:        	White=3     	Black=3      Brilliant:      	White=1     	---} 1/2-1/2

[Event "Azerbaijan-ch-Women-2025"]
[Site "Baku"]
[Date "2025.02.04"]
[Round "1.1"]
[White "Kazimova, Narmin"]
[Black "Mamedjarova, Turkan"]
[Result "1-0"]
[Annotator "NA RC"]
[ECO "A18"]
[WhiteElo "2167"]
[BlackElo "2197"]
[PlyCount "39"]
[EventDate "2025.01.08"]
[EventType "k.o."]
[EventCountry "AZE"]
[SourceTitle "playchess.com"]
[Source "ChessBase"]
[SourceQuality "1"]
[TimeControl "40/5400+30:1800+30"]

1. c4 {[%emt 0:00:06]} Nf6 {[%emt 0:01:31]} 2. Nc3 {[%emt 0:00:33]} e6 {[%emt 0:01:58]} 3. e4 {[%emt 0:05:16]} d5 {[%emt 0:08:40]} 4. e5 {[%emt 0:00:44]} Nfd7 {[%emt 0:04:07]} 5. cxd5 {[%emt 0:03:28]} exd5 {[%emt 0:08:51]} 6. d4 {[%emt 0:00:44]} Nb6 {[%emt 0:00:32]} 7. Bd3 {[%emt 0:10:12]} Be7 {[%emt 0:12:29]} 8. Nge2 {[%emt 0:19:57]} c5 {[%emt 0:13:45]} 9. O-O {[%emt 0:11:30]} Nc6 {[%emt 0:01:43]} 10. dxc5 {[%emt 0:08:57]} Bxc5 {[%emt 0:00:20]} 11. Nf4 {[%emt 0:03:47]} Nxe5 {[%emt 0:11:21]} 12. Re1 {[%emt 0:04:23]} Qf6 {[%emt 0:08:11]} 13. Ncxd5 {[%emt 0:08:36]} Qd6 {[%emt 0:08:50]} 14. b4 {[%emt 0:07:40]} Bxf2+ {[%emt 0:07:07]} 15. Kxf2 {[%emt 0:00:03]} O-O {[%emt 0:00:34]} 16. Bxh7+ {[%emt 0:01:08]} Kh8 {[%emt 0:00:05]} 17. Qh5 {[%emt 0:02:02]} Ng4+ {[%emt 0:00:23]} 18. Kg1 {[%emt 0:00:48]} Nh6 {[%emt 0:01:21]} 19. Bd3 {[%emt 0:03:57]} Bg4 {[%emt 0:01:05]} 20. Qe5 {[%emt 0:01:15]} 1-0